[Event "Polish University-ch Women 2024"]
[Site "Lublin"]
[Date "2024.02.23"]
[Round "1.8"]
[White "Debowska, Michalina"]
[Black "Marcinczyk, Monika"]
[Result "1-0"]
[ECO "A51"]
[WhiteElo "1368"]
[BlackElo "1983"]
[Annotator "NA RC"]
[PlyCount "81"]
[EventDate "2024.02.22"]
[EventType "swiss"]
[EventCountry "POL"]
[SourceTitle "playchess.com"]
[Source "ChessBase"]
[SourceQuality "1"]
[TimeControl "600+3"]

1. c4 {[%emt 0:00:01]} e5 {[%emt 0:00:01]} 2. Nc3 {[%emt 0:00:02]} Nf6 {[%emt 0:00:01]} 3. d4 {[%emt 0:00:03]} exd4 {[%emt 0:00:02]} 4. Qxd4 {[%emt 0:00:02]} Nc6 {[%emt 0:00:02]} 5. Qd1 {[%emt 0:00:08]} Bc5 {[%emt 0:00:22]} 6. Nf3 {[%emt 0:00:23]} O-O {[%emt 0:00:07]} 7. e3 {[%emt 0:00:04]} d6 {[%emt 0:00:53]} 8. Be2 {[%emt 0:00:10]} Bf5 {[%emt 0:00:29]} 9. a3 {[%emt 0:00:18]} a5 {[%emt 0:00:01]} 10. O-O {[%emt 0:00:05]} Re8 {[%emt 0:01:10]} 11. Re1 {[%emt 0:01:02]} Ne4 {[%emt 0:01:06]} 12. Nxe4 {[%emt 0:01:28]} Bxe4 {[%emt 0:00:02]} 13. h3 {[%emt 0:00:17]} Qf6 {[%emt 0:00:04]} 14. Nd2 {[%emt 0:01:26]} Bf5 {[%emt 0:01:39]} 15. Bg4 {[%emt 0:00:36]} Ne5 {[%emt 0:00:14]} 16. Bxf5 {[%emt 0:00:35]} Qxf5 {[%emt 0:00:01]} 17. Nf3 {[%emt 0:00:14]} Nxc4 {[%emt 0:00:10]} 18. Qb3 {[%emt 0:00:19]} Nb6 {[%emt 0:00:31]} 19. Bd2 {[%emt 0:00:33]} a4 {[%emt 0:00:23]} 20. Qc3 {[%emt 0:00:46]} Nd5 {[%emt 0:00:09]} 21. Qc4 {[%emt 0:00:11]} Qe4 {[%emt 0:02:11]} 22. Qxe4 {[%emt 0:00:38]} Rxe4 {[%emt 0:00:01]} 23. Ng5 {[%emt 0:00:09]} Re5 {[%emt 0:00:12]} 24. Nf3 {[%emt 0:00:04]} Re7 {[%emt 0:00:05]} 25. Rac1 {[%emt 0:00:11]} Bb6 {[%emt 0:00:01]} 26. Nd4 {[%emt 0:00:06]} Rae8 {[%emt 0:00:16]} 27. Red1 {[%emt 0:00:07]} Bxd4 {[%emt 0:00:11]} 28. exd4 {[%emt 0:00:01]} b5 {[%emt 0:00:02]} 29. Ba5 {[%emt 0:00:08]} f6 {[%emt 0:00:25]} 30. Rc2 {[%emt 0:00:05]} Ra8 {[%emt 0:00:10]} 31. Bc3 {[%emt 0:00:09]} Kf7 {[%emt 0:00:12]} 32. Kf1 {[%emt 0:00:05]} Rae8 {[%emt 0:00:06]} 33. Ba5 {[%emt 0:00:02]} Ra8 {[%emt 0:00:01]} 34. Bc3 {[%emt 0:00:01]} Rc8 {[%emt 0:00:03]} 35. Ba5 {[%emt 0:00:05]} c5 {[%emt 0:00:06]} 36. dxc5 {[%emt 0:00:05]} Nf4 {[%emt 0:00:05]} 37. c6 {[%emt 0:00:09]} d5 {[%emt 0:00:10]} 38. Bb4 {[%emt 0:00:05]} Rec7 {[%emt 0:00:05]} 39. Bd6 {[%emt 0:00:04]} Rxc6 {[%emt 0:00:02]} 40. Rxc6 {[%emt 0:00:01]} Rxc6 {[%emt 0:00:01]} 41. Bxf4 {[%emt 0:00:01]} 1-0

[Event "Polish University-ch Women 2024"]
[Site "Lublin"]
[Date "2024.02.23"]
[Round "1.9"]
[White "Cieslak, Wiktoria"]
[Black "Trusinska, Magdalena"]
[Result "1-0"]
[ECO "B06"]
[WhiteElo "1868"]
[BlackElo "1270"]
[Annotator "NA RC"]
[PlyCount "47"]
[EventDate "2024.02.22"]
[EventType "swiss"]
[EventCountry "POL"]
[SourceTitle "playchess.com"]
[Source "ChessBase"]
[SourceQuality "1"]
[TimeControl "600+3"]

1. e4 {[%emt 0:00:01]} g6 {[%emt 0:00:08]} 2. d4 {[%emt 0:00:01]} Bg7 {[%emt 0:00:02]} 3. Nc3 {[%emt 0:00:03]} d6 {[%emt 0:00:02]} 4. f4 {[%emt 0:00:01]} Nd7 {[%emt 0:00:03]} 5. Nf3 {[%emt 0:00:02]} c5 {[%emt 0:00:06]} 6. dxc5 {[%emt 0:00:07]} Nxc5 {[%emt 0:00:14]} 7. Bd3 {[%emt 0:00:05]} e5 {[%emt 0:01:29]} 8. O-O {[%emt 0:00:22]} f5 {[%emt 0:00:53]} 9. fxe5 {[%emt 0:00:22]} dxe5 {[%emt 0:01:31]} 10. Be3 {[%emt 0:01:49]} Nxd3 {[%emt 0:01:21]} 11. cxd3 {[%emt 0:00:05]} fxe4 {[%emt 0:00:29]} 12. dxe4 {[%emt 0:00:09]} Bg4 {[%emt 0:00:58]} 13. Qb3 {[%emt 0:01:26]} Nf6 {[%emt 0:02:13]} 14. Nxe5 {[%emt 0:00:16]} Qe7 {[%emt 0:00:22]} 15. Rxf6 {[%emt 0:01:09]} Bxf6 {[%emt 0:00:34]} 16. Nxg4 {[%emt 0:00:01]} Bg7 {[%emt 0:00:18]} 17. Nd5 {[%emt 0:00:47]} Qf7 {[%emt 0:00:06]} 18. Qb5+ {[%emt 0:00:09]} Kf8 {[%emt 0:00:04]} 19. Rf1 {[%emt 0:00:05]} Qxf1+ {[%emt 0:00:03]} 20. Kxf1 {[%emt 0:00:02]} Kf7 {[%emt 0:00:01]} 21. Qd7+ {[%emt 0:00:05]} Kf8 {[%emt 0:00:02]} 22. Qe7+ {[%emt 0:00:03]} Kg8 {[%emt 0:00:02]} 23. Ngf6+ {[%emt 0:00:01]} Bxf6 {[%emt 0:00:02]} 24. Nxf6# {[%emt 0:00:02]} 1-0

[Event "Polish University-ch Women 2024"]
[Site "Lublin"]
[Date "2024.02.23"]
[Round "1.10"]
[White "Luka, Agnieszka"]
[Black "Harazinska, Magdalena"]
[Result "0-1"]
[ECO "D37"]
[WhiteElo "1264"]
[BlackElo "1950"]
[Annotator "NA RC"]
[PlyCount "48"]
[EventDate "2024.02.22"]
[EventType "swiss"]
[EventCountry "POL"]
[SourceTitle "playchess.com"]
[Source "ChessBase"]
[SourceQuality "1"]
[TimeControl "600+3"]

1. d4 {[%emt 0:00:03]} Nf6 {[%emt 0:00:02]} 2. c4 {[%emt 0:00:02]} c5 {[%emt 0:00:03]} 3. e3 {[%emt 0:00:06]} e6 {[%emt 0:00:09]} 4. Nf3 {[%emt 0:00:22]} Be7 {[%emt 0:00:40]} 5. Be2 {[%emt 0:00:16]} O-O {[%emt 0:00:05]} 6. O-O {[%emt 0:00:33]} b6 {[%emt 0:00:14]} 7. Nc3 {[%emt 0:00:23]} Bb7 {[%emt 0:00:02]} 8. Qc2 {[%emt 0:01:05]} d5 {[%emt 0:00:09]} 9. cxd5 {[%emt 0:00:18]} exd5 {[%emt 0:00:14]} 10. b3 {[%emt 0:00:07]} Nbd7 {[%emt 0:00:32]} 11. Bb2 {[%emt 0:00:03]} Rc8 {[%emt 0:00:25]} 12. Qd2 {[%emt 0:01:13]} Qc7 {[%emt 0:01:01]} 13. h3 {[%emt 0:00:14]} Rfd8 {[%emt 0:00:12]} 14. Rac1 {[%emt 0:00:09]} Qb8 {[%emt 0:00:02]} 15. Rfd1 {[%emt 0:00:18]} h6 {[%emt 0:00:19]} 16. Qe1 {[%emt 0:01:36]} Ne4 {[%emt 0:01:04]} 17. Bd3 {[%emt 0:00:45]} cxd4 {[%emt 0:01:09]} 18. Nxd4 {[%emt 0:00:12]} Ndc5 {[%emt 0:00:38]} 19. Nxe4 {[%emt 0:01:22]} Nxd3 {[%emt 0:00:37]} 20. Rxd3 {[%emt 0:00:19]} dxe4 {[%emt 0:00:03]} 21. Rdd1 {[%emt 0:00:07]} Bf6 {[%emt 0:00:17]} 22. Rd2 {[%emt 0:00:44]} Rc5 {[%emt 0:00:46]} 23. Qd1 {[%emt 0:00:36]} Qc8 {[%emt 0:00:11]} 24. Rdc2 {[%emt 0:00:10]} Ba6 {[%emt 0:00:16]} 0-1

[Event "Polish University-ch Women 2024"]
[Site "Lublin"]
[Date "2024.02.23"]
[Round "2.1"]
[White "Mirowska, Oliwia"]
[Black "Sliwicka, Alicja"]
[Result "0-1"]
[ECO "A03"]
[WhiteElo "1977"]
[BlackElo "2309"]
[Annotator "TA"]
[PlyCount "134"]
[EventDate "2024.02.22"]
[EventType "swiss"]
[EventCountry "POL"]
[SourceTitle "playchess.com"]
[Source "ChessBase"]
[SourceQuality "1"]
[TimeControl "600+3"]

{[%evp 36,134,99,85,160,94,96,-29,24,-81,106,89,95,85,263,263,267,261,371,359,334,0,330,166,165,170,393,271,281,112,95,-8,-14,-24,-16,-103,264,258,257,246,248,-8,-14,-140,-137,-164,-142,-354,-348,-354,-343,-360,-345,-331,-285,-380,-395,-401,-393,-349,0,-410,-407,-456,-462,-564,-562,-608,-486,-497,-391,-639,-435,-729,-685,-667,-668,-731,-736,-1110,-1027,-1959,-2138,-1996,-1324,-1287,-1342,-1947,-1878,-6016,-5755,-29970,-29970,-29986,-29987,-29987,-29962,-29959,-6382,-29988,-29989]} 1. f4 {[%emt 0:00:02]} d5 {[%emt 0:00:02]} 2. Nf3 {[%emt 0:00:02]} g6 {[%emt 0:00:08]} 3. g3 {[%emt 0:00:03]} Bg7 {[%emt 0:00:02]} 4. Bg2 {[%emt 0:00:03]} Nf6 {[%emt 0:00:02]} 5. O-O {[%emt 0:00:02]} O-O {[%emt 0:00:05]} 6. d3 {[%emt 0:00:04]} Nc6 {[%emt 0:00:11]} 7. Nc3 {[%emt 0:00:04]} d4 {[%emt 0:00:29] A03: Bird-Eröffnung.} 8. Ne4 {[%emt 0:00:03]} Nd5 {[%emt 0:00:08]} 9. Nh4 $146 {[%emt 0:00:37]} ({Predecessor:} 9. Bd2 a5 10. c4 Nf6 11. a3 Bf5 12. Nc5 Nd7 13. Nxd7 Qxd7 14. Rb1 Bh3 15. b4 Bxg2 16. Kxg2 axb4 17. axb4 {0-1 Bzenic,D (2172)-Savicevic,V (2284) SRB-ch Rapid 2022 (7)}) 9... h6 {[%emt 0:00:25]} 10. f5 {[%emt 0:03:54]} g5 {[%emt 0:00:10]} 11. Nf3 {[%emt 0:00:46]} Nf6 {[%emt 0:01:26]} 12. Nxf6+ {[%emt 0:00:17]} Bxf6 {[%emt 0:00:03]} 13. Nd2 {[%emt 0:01:29]} Ne5 {[%emt 0:00:51]} 14. Ne4 {[%emt 0:00:05]} Bg7 {[%emt 0:00:24]} 15. e3 {[%emt 0:01:09]} c6 {[%emt 0:01:23]} 16. Kh1 {[%emt 0:00:15]} f6 {[%emt 0:00:48]} 17. Qh5 {[%emt 0:00:12]} Qb6 {[%emt 0:00:21]} 18. exd4 {[%emt 0:00:36]} Qxd4 {[%emt 0:00:05]} 19. Qe2 {[%emt 0:00:21]} e6 {[%emt 0:00:20]} (19... b6 $142) 20. fxe6 {[%emt 0:00:28]} ({Vorzuziehen ist} 20. Be3 Qd7 21. Nc5) 20... Bxe6 $16 {[%emt 0:00:04]} 21. Rb1 {[%emt 0:00:01]} (21. Be3 $16 Qd7 22. Nc5) 21... Bg4 {[%emt 0:00:06]} ({Besser ist} 21... f5 22. Be3 Qd8) 22. Qe1 {[%emt 0:00:07]} (22. Qf2 $11 Qd7 23. Nc5) 22... Rae8 $2 {[%emt 0:00:06]} (22... f5 $17 23. Be3 Qa4) 23. Be3 $16 {[%emt 0:00:02]} Qd7 {[%emt 0:00:08]} 24. Bc5 $1 {[%emt 0:00:02]} Ng6 $2 {[%emt 0:02:02]} (24... f5 $16 25. Bxf8 Rxf8) 25. Bxf8 $18 {[%emt 0:00:04]} Rxf8 {[%emt 0:00:03]} 26. Qc3 {[%emt 0:00:03]} (26. Nc5 $6 Qf7 27. Qb4 Bc8 $18) 26... Qf7 {[%emt 0:00:18]} (26... Kh8 {war nötig.} 27. Rxf6 (27. Nxf6 Qc8 $16) 27... Re8) 27. Nd6 $18 {[%emt 0:00:05]} Qd7 {[%emt 0:00:11]} 28. Ne4 $2 {[%emt 0:00:06]} ({Günstiger ist} 28. Nxb7 $18 Kh7 (28... Qxb7 $2 29. Qc4+ Qf7 30. Qxg4 $18) 29. Nc5 (29. Bxc6 Qf7 $18) (29. Qxc6 Qxc6 30. Bxc6 f5 $18)) 28... Ne5 $2 {[%emt 0:00:26][%mdl 8192]} (28... Qf7 $1 $11 {und Schwarz muss sich keine Sorgen machen.}) 29. Qc5 {[%emt 0:00:08]} (29. Nc5 $142 Qe7 30. d4) 29... b6 {[%emt 0:00:06]} 30. Qd6 {[%emt 0:00:02]} Qf7 $2 {[%emt 0:00:12]} (30... Be6 31. Qxd7 Bxd7) 31. d4 {[%emt 0:00:06]} Nc4 {[%emt 0:00:02]} 32. Qb4 $2 {[%emt 0:00:03]} (32. Qxc6 $18 {[%cal Oe4f6] und der Rest ist Schweigen. Zielt auf Nxf6+! ab.} Ne3 33. Nd6) 32... Ne3 $16 {[%emt 0:00:03]} 33. Rf2 {[%emt 0:00:02]} (33. Nd6 $16 Qxa2 34. Ra1 Nxc2 35. Rxa2 Nxb4 36. Rxa7) 33... Nxg2 $11 {[%emt 0:00:02]} 34. Kxg2 {[%emt 0:00:03]} Qd5 {[%emt 0:00:07]} 35. Re1 {[%emt 0:00:06]} (35. Qb3 $11 Be6 36. Re1) 35... Bf5 $2 {[%emt 0:00:16][%mdl 8192]} (35... Qxa2 $2 36. b3 $18) (35... f5 $1 $17 {[%cal Rf5e4] bleibt auf Kurs.} 36. Qd6 fxe4 37. Rxf8+ Bxf8 38. Qg6+ Bg7 39. Qe8+ Kh7 40. Qxe4+ Qxe4+ 41. Rxe4 Bf5) 36. Qb3 $18 {[%emt 0:00:05]} Be6 {[%emt 0:00:06]} 37. Kg1 {[%emt 0:00:03]} f5 {[%emt 0:00:04] [#]} 38. Qxd5 $2 {[%emt 0:00:03]} (38. Nd6 $1 $18 Qxb3 39. axb3 Bxb3 40. cxb3 Bxd4 41. Re6) 38... Bxd5 $11 {[%emt 0:00:01]} 39. Nd6 {[%emt 0:00:02]} (39. Nc3 $1 $11 Bxd4 40. Nxd5 cxd5 (40... Bxf2+ 41. Kxf2 cxd5 42. Re7 $15) 41. c3 Bxf2+ 42. Kxf2) 39... Bxd4 $17 {[%emt 0:00:02]} 40. c3 {[%emt 0:00:03]} Bc5 {[%emt 0:00:03]} (40... Bxf2+ $2 41. Kxf2 f4 (41... Bxa2 42. Re7 $17) 42. gxf4) 41. Ne8 $2 {[%emt 0:00:06]} (41. c4 $17 Bf7 (41... Bxf2+ 42. Kxf2 Bf7 43. Re7 $11) 42. Nxf7 Kxf7 (42... Bxf2+ 43. Kxf2 Kxf7 44. Rd1 $19) 43. Rd1) 41... f4 $19 {[%emt 0:00:06]} (41... Bxf2+ 42. Kxf2 f4 (42... Bxa2 $2 43. Nd6 $19) 43. gxf4 $19) (41... Bxa2 42. Re5 $19) 42. Kf1 {[%emt 0:00:04]} Bxf2 {[%emt 0:00:03]} 43. Kxf2 {[%emt 0:00:01]} fxg3+ {[%emt 0:00:04]} (43... Bxa2 44. Nc7 $19) 44. Kxg3 {[%emt 0:00:02]} h5 {[%emt 0:00:01]} (44... Bxa2 45. Re7) 45. h3 {[%emt 0:00:05]} Rf3+ {[%emt 0:00:02]} ({Schwächer ist} 45... Bxa2 46. Re5 $19) 46. Kh2 {[%emt 0:00:01]} Rf2+ {[%emt 0:00:02]} ({Weniger gut wäre} 46... Bxa2 47. Re4 $19) 47. Kg1 {[%emt 0:00:01]} Rf3 $2 {[%emt 0:00:05]} (47... Rg2+ $19 48. Kf1 Rxb2 49. Nf6+ Kf7 50. Nxd5 cxd5) 48. Nd6 $2 {[%emt 0:00:03][%mdl 8192]} (48. Kh2 $1 $11 {und Weiss steht sicher.} Rf2+ (48... Bxa2 $2 49. Nd6 $19) 49. Kg1 Rg2+ (49... Rxb2 $2 50. Nf6+ Kf7 51. Nxd5 $19) 50. Kf1 Rxb2 51. Nf6+ Kf7 52. Nxd5 cxd5 53. h4) 48... Rxh3 $19 {[%emt 0:00:04]} 49. Re8+ {[%emt 0:00:03]} Kg7 {[%emt 0:00:01]} 50. Re7+ {[%emt 0:00:08]} Kf6 {[%emt 0:00:01]} 51. Rxa7 {[%emt 0:00:03]} Rh1+ {[%emt 0:00:03]} 52. Kf2 {[%emt 0:00:01]} h4 {[%emt 0:00:02]} 53. Ne8+ $2 {[%emt 0:00:02]} (53. c4 Be6 54. Ne8+ Ke5 55. Re7) 53... Kf5 {[%emt 0:00:17]} 54. Ng7+ {[%emt 0:00:03]} (54. c4 $142 Bg8 (54... Bxc4 55. Nd6+ Kf4 56. Nxc4 $11) 55. Rg7) 54... Kg4 {[%emt 0:00:00]} 55. Ra4+ {[%emt 0:00:05]} Kh3 {[%emt 0:00:00]} 56. Nf5 {[%emt 0:00:05]} g4 {[%emt 0:00:00]} 57. Ke3 {[%emt 0:00:07]} Rf1 {[%emt 0:00:01]} 58. Nd4 {[%emt 0:00:03]} g3 {[%emt 0:00:02]} 59. Ne2 {[%emt 0:00:02]} Rf3+ {[%emt 0:00:03]} 60. Kd2 {[%emt 0:00:01]} Rf2 {[%emt 0:00:02]} 61. Ke1 {[%emt 0:00:01]} Rf7 {[%emt 0:00:06]} 62. Nf4+ {[%emt 0:00:04]} Kh2 {[%emt 0:00:02]} 63. Ne2 {[%emt 0:00:01]} h3 {[%emt 0:00:02]} 64. Rg4 {[%emt 0:00:04]} Re7 {[%emt 0:00:03]} 65. Kd2 {[%emt 0:00:08]} Rxe2+ {[%emt 0:00:04]} 66. Kxe2 {[%emt 0:00:02]} Kg2 {[%emt 0:00:01]} 67. c4 {[%emt 0:00:03]} Bf3+ {[%emt 0:00:01]} 0-1

[Event "Polish University-ch Women 2024"]
[Site "Lublin"]
[Date "2024.02.23"]
[Round "2.2"]
[White "Antolak, Julia"]
[Black "Orlik, Sandra"]
[Result "1-0"]
[ECO "B33"]
[WhiteElo "2309"]
[BlackElo "1836"]
[Annotator "TA"]
[PlyCount "68"]
[EventDate "2024.02.22"]
[EventType "swiss"]
[EventCountry "POL"]
[SourceTitle "playchess.com"]
[Source "ChessBase"]
[SourceQuality "1"]
[TimeControl "600+3"]

{[%evp 9,68,21,61,35,54,56,65,38,57,55,117,55,67,-216,-1,-62,-7,-22,0,-31,0,0,0,0,0,-12,0,0,-25,-27,64,21,72,60,76,71,98,86,92,28,23,26,64,-4,-8,-649,-681,-29987,-1569,-29988,-244,-260,380,0,-11,-29,-46,-52,-56,-36,112]} 1. e4 {[%emt 0:00:02]} c5 {[%emt 0:00:01]} 2. Nf3 {[%emt 0:00:02]} Nc6 {[%emt 0:00:01]} 3. d4 {[%emt 0:00:02]} cxd4 {[%emt 0:00:02]} 4. Nxd4 {[%emt 0:00:01]} Nf6 {[%emt 0:00:02]} 5. Nc3 {[%emt 0:00:01]} h5 {[%emt 0:00:01]} 6. Nb3 {[%emt 0:00:15]} a6 {[%emt 0:00:24]} 7. Bg5 {[%emt 0:00:09]} b5 {[%emt 0:00:28]} 8. Bd3 {[%emt 0:00:15] Weiß steht aktiver. Weiß steht etwas besser.} Bb7 {[%emt 0:00:55]} 9. Qe2 {[%emt 0:00:02]} Ng4 {[%emt 0:01:12]} (9... Ne5 $14) 10. Nd5 {[%emt 0:00:28]} (10. f4 $16) 10... f6 $14 {[%emt 0:00:34]} 11. Nc5 $2 {[%emt 0:01:48][%mdl 8192] [#]} (11. h3 $14 {behält die Oberhand.} Nge5 12. Be3) 11... Bc8 $2 {[%emt 0:00:24]} (11... fxg5 $19 12. Nxb7 Qb8) 12. e5 {[%emt 0:00:18]} Ncxe5 {[%emt 0:01:21]} ({Vorzuziehen ist} 12... Ngxe5 $15 13. Be3 e6) 13. h3 $11 {[%emt 0:00:32]} Nxd3+ {[%emt 0:00:18]} (13... fxg5 14. hxg4 Nxd3+ 15. Qxd3 $16) 14. Nxd3 {[%emt 0:00:01]} (14. Qxd3 $2 Ne5 15. Qe3 d6 $19) 14... fxg5 {[%emt 0:01:22]} (14... Bb7 {ist interessant.} 15. Qe4 Bxd5 16. Qxd5 e6) 15. hxg4 {[%emt 0:00:05]} Bb7 {[%emt 0:00:51]} 16. Qe5 $40 {[%emt 0:01:18][%mdl 128] Weiss hat einigen Angriff.} (16. Rxh5 $2 Rxh5 17. gxh5 Bxd5 $19) 16... Rc8 {[%emt 0:00:19] Es drohte Nc7+} 17. gxh5 {[%emt 0:00:43]} e6 {[%emt 0:00:13]} 18. Ne3 {[%emt 0:00:24][%cal Bd5e3,Be3g4,Bg4h6][%mdl 32]} Qf6 {[%emt 0:00:11]} 19. O-O-O {[%emt 0:00:58]} Be7 {[%emt 0:00:57]} (19... Bc5 $1 $11) 20. f3 {[%emt 0:00:44]} d6 {[%emt 0:00:28]} (20... Qxe5 $11 {bleibt in der Remisbreite.} 21. Nxe5 Bc5) 21. Qg3 {[%emt 0:00:03]} a5 {[%emt 0:00:21]} 22. Kb1 {[%emt 0:00:39]} b4 {[%emt 0:00:06]} 23. Ng4 {[%emt 0:00:18]} Qf5 {[%emt 0:00:05]} 24. h6 {[%emt 0:00:23]} ({Besser ist} 24. Qf2 $16) 24... gxh6 {[%emt 0:00:07]} 25. Nxh6 {[%emt 0:00:02]} Qb5 {[%emt 0:00:03]} 26. Qg4 {[%emt 0:00:31]} (26. Qf2 $14) 26... Bd5 {[%emt 0:00:08][%cal Od5a2] [#] Und ...Bxa2+! würde nun gewinnen.} 27. f4 $2 {[%emt 0:00:17][%mdl 8192]} (27. Nc1 $11) 27... Qc4 $1 $19 {[%emt 0:00:02][%csl LRa2,LRc2]} 28. Nc1 {[%emt 0:00:12]} Qxc2+ {[%emt 0:00:02]} 29. Ka1 {[%emt 0:00:01]} Be4 $2 {[%emt 0:00:17]} (29... Bf6 {setzt Matt} 30. Qh5+ Kd8 31. Nf7+ Ke7 32. Ne5 Rxh5 33. Rhg1 gxf4 (33... dxe5 34. fxg5 Rxg5 35. Rh1 e4 36. Nd3 exd3 37. Rh7+ Kd6 38. Rd7+ Kxd7 39. Rb1 Qc4 40. Rh1 Qxa2#) 34. Ned3 Rh2 (34... Bxg2 35. Nb3 Be4 36. Rd2 Bxd3 37. Rxc2 Rxc2 38. Nc1 Bxb2+ 39. Kb1 Rxc1+ 40. Kxb2 Rxg1 41. Kb3 Rb1+ 42. Ka4 Bc2#) 35. Nb3 Rxg2 36. Rb1 Rxg1 (36... Qxd3 37. Rxg2 Bxg2 38. Re1 Be4 39. Nd4 Bxd4 40. Rg1 Bxb2+ 41. Kxb2 Qc3#) 37. Rxg1 Qxd3 38. Re1 Bxb3 (38... Bxb2+ 39. Kxb2 Rc2+ 40. Kb1 Rh2+ 41. Ka1 Qc3+ 42. Kb1 Qb2#) 39. axb3 Qxb3 (39... Bxb2+ 40. Ka2 Be5 41. Rxe5 Qd2+ 42. Kb1 Rc1#) 40. Rxe6+ Kxe6 41. Kb1 Qxb2#) 30. Nb3 {[%emt 0:00:16]} Bd3 $4 {[%emt 0:00:12][%mdl 8192] Ein starkes Läuferpaar.} (30... Qxg2 $2 {zu gefräßig.} 31. Qxe6 (31. Nxa5 $2 Qxg4 32. Nxg4 Rxh1 $19) 31... Rc7 32. Rhe1 $18 (32. Nxa5 Qxh1 33. Rxh1 Bxh1 $14)) (30... a4 $19 {[%cal Oc2b2] und alles wird gut. ( -> ...Qxb2+!)} 31. Nd4 Qc4 32. Qxe6 (32. Nxe6 $2 Rxh6 33. Rhe1 Rxe6 $19) 32... Qxe6 (32... Bxg2 $2 33. Qg6+ Kd8 34. Nf7+ Kc7 35. Rxh8 $18) 33. Nxe6 gxf4 (33... Bxg2 $2 34. Rh2 $19) 34. Nxf4 Kd7) 31. Rc1 $2 {[%emt 0:00:11]} (31. Nxa5 $2 {verliert.} Be2 $19) (31. Qxe6 $18 Qc4 32. Qh3) 31... Qxc1+ $11 {[%emt 0:00:03]} 32. Rxc1 {[%emt 0:00:16]} (32. Nxc1 $5 Rxh6 33. Re1 $11) 32... Rxc1+ {[%emt 0:00:02]} 33. Nxc1 {[%emt 0:00:01]} Rxh6 {[%emt 0:00:10]} 34. Qd1 {[%emt 0:00:03] Gegen Rh1 gerichtet.} (34. Nxd3 $2 {führt zum Matt.} Rh1+) 34... Bb5 {[%emt 0:00:03] Gewichteter Fehlerwert: Weiß=0.86/Schwarz=0.62.  Verlustzug:     	Weiß=2     	---        Gewinn verpasst:   	Weiß=1     	Schwarz=1     Fehler:       	Weiß=4     	Schwarz=5     Ungenau:       	Weiß=4     	Schwarz=2     OK:         	Weiß=6     	Schwarz=7     Bester:       	Weiß=1     	Schwarz=5} (34... Bf5 $15) 1-0

[Event "Polish University-ch Women 2024"]
[Site "Lublin"]
[Date "2024.02.23"]
[Round "2.3"]
[White "Buchta, Agnieszka"]
[Black "Czarnecka, Lidia"]
[Result "0-1"]
[ECO "B20"]
[WhiteElo "1807"]
[BlackElo "2034"]
[Annotator "NA"]
[PlyCount "56"]
[EventDate "2024.02.22"]
[EventType "swiss"]
[EventCountry "POL"]
[SourceTitle "playchess.com"]
[Source "ChessBase"]
[SourceQuality "1"]
[TimeControl "600+3"]

1. e4 {[%emt 0:00:01]} c5 {[%emt 0:00:01]} 2. b3 {[%emt 0:00:01]} Nc6 {[%emt 0:00:07]} 3. Bb2 {[%emt 0:00:05]} e5 {[%emt 0:00:02]} 4. Bc4 {[%emt 0:00:35]} d6 {[%emt 0:00:10]} 5. d3 {[%emt 0:00:05]} Nf6 {[%emt 0:00:05]} 6. Ne2 {[%emt 0:00:21]} Be7 {[%emt 0:00:02]} 7. O-O {[%emt 0:00:03]} O-O {[%emt 0:00:02]} 8. f4 {[%emt 0:00:37]} exf4 {[%emt 0:01:00]} 9. Nxf4 {[%emt 0:00:10]} Ng4 {[%emt 0:00:10]} 10. Nd5 {[%emt 0:01:29]} Bg5 {[%emt 0:00:11]} 11. h3 {[%emt 0:01:18]} Nge5 {[%emt 0:00:24]} 12. Nd2 {[%emt 0:00:15]} a6 {[%emt 0:00:06]} 13. a4 {[%emt 0:00:02]} Rb8 {[%emt 0:00:02]} 14. Nf4 {[%emt 0:00:52]} b5 {[%emt 0:00:22]} 15. axb5 {[%emt 0:00:03]} axb5 {[%emt 0:00:01]} 16. Bd5 {[%emt 0:00:01]} Nb4 {[%emt 0:01:13]} 17. Rf2 {[%emt 0:02:34]} Qe7 {[%emt 0:00:37]} 18. Nf1 {[%emt 0:00:04]} Bh4 {[%emt 0:01:10]} 19. Re2 {[%emt 0:01:14]} Qg5 {[%emt 0:00:39]} 20. Bc1 {[%emt 0:00:23]} Qf6 {[%emt 0:00:48]} 21. Ra7 {[%emt 0:00:08]} Nbc6 {[%emt 0:02:42]} 22. Ra2 {[%emt 0:00:32]} Bd7 {[%emt 0:00:09]} 23. Kh2 {[%emt 0:00:10]} Nd4 {[%emt 0:00:03]} 24. Re3 {[%emt 0:00:04]} Qxf4+ {[%emt 0:00:02]} 25. g3 {[%emt 0:00:02]} Qf2+ {[%emt 0:00:07]} 26. Kh1 {[%emt 0:00:03]} Nef3 {[%emt 0:00:02]} 27. Rxf3 {[%emt 0:00:07]} Nxf3 {[%emt 0:00:02]} 28. gxh4 {[%emt 0:00:04]} Qg1# {[%emt 0:00:08]} 0-1

[Event "Polish University-ch Women 2024"]
[Site "Lublin"]
[Date "2024.02.23"]
[Round "2.4"]
[White "Wikar, Martyna"]
[Black "Pisarek, Elzbieta"]
[Result "1-0"]
[ECO "B50"]
[WhiteElo "2214"]
[BlackElo "1754"]
[Annotator "RC"]
[PlyCount "49"]
[EventDate "2024.02.22"]
[EventType "swiss"]
[EventCountry "POL"]
[SourceTitle "playchess.com"]
[Source "ChessBase"]
[SourceQuality "1"]
[TimeControl "600+3"]

1. e4 {[%emt 0:00:02]} c5 {[%emt 0:00:04]} 2. Nf3 {[%emt 0:00:02]} d6 {[%emt 0:00:03]} 3. Bc4 {[%emt 0:10:08]} Nc6 {[%emt 0:00:35]} 4. O-O {[%emt 0:00:00]} Nf6 {[%emt 0:00:25]} 5. d3 {[%emt 0:00:00]} g6 {[%emt 0:00:14]} 6. c3 {[%emt 0:00:00]} Bg7 {[%emt 0:00:06]} 7. Bb3 {[%emt 0:00:00]} O-O {[%emt 0:00:05]} 8. Re1 {[%emt 0:00:00]} e6 {[%emt 0:01:29]} 9. Nbd2 {[%emt 0:00:00]} a6 {[%emt 0:00:25]} 10. Nf1 {[%emt 0:00:00]} b5 {[%emt 0:00:14]} 11. d4 {[%emt 0:00:00]} cxd4 {[%emt 0:00:23]} 12. cxd4 {[%emt 0:00:00]} d5 {[%emt 0:00:37]} 13. e5 {[%emt 0:00:00]} Nd7 {[%emt 0:00:16]} 14. h4 {[%emt 0:00:00]} h5 {[%emt 0:00:08]} 15. Bg5 {[%emt 0:00:00]} Qb6 {[%emt 0:00:23]} 16. Qd2 {[%emt 0:00:00]} a5 {[%emt 0:01:14]} 17. Ng3 {[%emt 0:00:00]} Bb7 {[%emt 0:00:33]} 18. Bh6 {[%emt 0:00:00]} Qd8 {[%emt 0:00:30]} 19. Bc2 {[%emt 0:00:00]} Rc8 {[%emt 0:01:10]} 20. Bb1 {[%emt 0:00:00]} b4 {[%emt 0:00:59]} 21. Nxh5 {[%emt 0:00:00]} gxh5 {[%emt 0:00:16]} 22. Qd3 {[%emt 0:00:00]} f5 {[%emt 0:00:26]} 23. exf6 {[%emt 0:00:00]} Nxf6 {[%emt 0:00:04]} 24. Bxg7 {[%emt 0:00:00]} Kxg7 {[%emt 0:00:21]} 25. Ng5 {[%emt 0:00:00]} 1-0